fUST/lending_fUST_20260226
["ID","MTS","AMOUNT","RATE_DAILY","PERIOD"]
[406656706,1772039800260,-152.15741592,0.00042298,120]
[406656707,1772039800288,-152.15741592,0.00042298,120]
[406656708,1772039800316,-326.70015255,0.00042298,120]
[406656709,1772039800344,-326.70015255,0.00042298,120]
[406656710,1772039800372,-326.70015255,0.00042298,120]
[406656711,1772039800398,-749191.02782092,0.00042298,120]
[406656712,1772039800423,-2197.0,0.00042298,120]
[406656713,1772039800449,-500.0,0.00042298,30]
[406656714,1772039800474,-500.0,0.00042298,30]
[406656715,1772039800499,-500.0,0.00042298,30]
[406656716,1772039800524,-500.0,0.00042298,30]
[406656717,1772039800772,-500.0,0.00042298,30]
[406656718,1772039800799,-500.0,0.00042298,30]
[406656719,1772039800826,-525.18225109,0.00042298,30]
[406656720,1772039800850,-3678.9270997,0.00042298,120]
[406656721,1772039800876,-153.40751064,0.00042298,120]
[406656722,1772039800901,-6047.78118128,0.00042298,120]
[406656723,1772039800926,-202.72092058,0.00042298,120]
[406656724,1772039800951,-6787.20194814,0.00042298,120]
[406656725,1772039800976,-1192.0964432,0.00042298,120]
[406656726,1772039801002,-326.70015255,0.00042298,120]
[406656727,1772039801029,-326.70015255,0.00042298,120]
[406656728,1772039801056,-326.70015255,0.00042298,120]
[406656729,1772039801082,-150.0,0.00042298,30]
[406656730,1772039801108,-151.0,0.00042298,120]
[406656731,1772039801133,-151.0,0.00042298,120]
[406656732,1772039801159,-151.0,0.00042298,120]
[406656733,1772039801183,-960.14465948,0.00042298,120]
[406656734,1772039801208,-607.3302322,0.00042298,30]
[406656735,1772039801233,-151.0,0.00042298,120]
[406656736,1772039801259,-151.0,0.00042298,120]
[406656737,1772039801285,-151.0,0.00042298,120]
[406656738,1772039801313,-165.472955,0.00042298,120]
[406656739,1772039801337,-150.0,0.00042298,30]
[406656740,1772039801365,-151.0,0.00042298,30]
[406656741,1772039801390,-151.0,0.00042298,30]
[406656742,1772039801418,-151.0,0.00042298,30]
[406656743,1772039801443,-151.48666,0.00042298,30]
[406656744,1772039801468,-668.248132,0.00042298,120]
[406656745,1772039801495,-668.248132,0.00042298,120]
[406656746,1772039801520,-668.248132,0.00042298,120]
[406656747,1772039801545,-668.248132,0.00042298,120]
[406656748,1772039801571,-668.248132,0.00042298,120]
[406656749,1772039801596,-668.248132,0.00042298,120]
[406656750,1772039801621,-668.248132,0.00042298,120]
[406656751,1772039801646,-668.248132,0.00042298,120]
[406656752,1772039801671,-668.248132,0.00042298,120]
[406656753,1772039801697,-668.248132,0.00042298,120]
[406656754,1772039801722,-668.248132,0.00042298,120]
[406656755,1772039801751,-668.248132,0.00042298,120]
[406656756,1772039801779,-668.248132,0.00042298,120]
[406656757,1772039801806,-668.248132,0.00042298,120]
[406656758,1772039801833,-668.248132,0.00042298,120]
[406656759,1772039801860,-668.248132,0.00042298,120]
[406656760,1772039801887,-668.248132,0.00042298,120]
[406656761,1772039801914,-668.248132,0.00042298,120]
[406656762,1772039801938,-668.248132,0.00042298,120]
[406656763,1772039801961,-668.248142,0.00042298,120]
[406656764,1772039801984,-156.2232175,0.00042298,30]
[406656765,1772039802009,-607.3302322,0.00042298,30]
[406656766,1772039802034,-607.3302324,0.00042298,30]
[406656767,1772039802060,-182.576942,0.00042298,120]
[406656768,1772039802087,-182.576942,0.00042298,120]
[406656769,1772039802111,-182.576942,0.00042298,120]
[406656770,1772039802136,-182.576942,0.00042298,120]
[406656771,1772039802160,-182.576942,0.00042298,120]
[406656772,1772039802184,-182.576942,0.00042298,120]
[406656773,1772039802208,-182.576942,0.00042298,120]
[406656774,1772039802234,-182.576942,0.00042298,120]
[406656775,1772039802259,-182.576942,0.00042298,120]
[406656776,1772039802285,-182.576942,0.00042298,120]
[406656777,1772039802310,-182.576942,0.00042298,120]
[406656778,1772039802335,-182.576942,0.00042298,120]
[406656779,1772039802361,-182.576942,0.00042298,120]
[406656780,1772039802387,-182.576942,0.00042298,120]
[406656781,1772039802414,-182.576942,0.00042298,120]
[406656782,1772039802444,-182.576942,0.00042298,120]
[406656783,1772039802470,-182.576942,0.00042298,120]
[406656784,1772039802494,-182.576942,0.00042298,120]
[406656785,1772039802519,-182.576942,0.00042298,120]
[406656786,1772039802544,-182.576935,0.00042298,120]
[406656787,1772039802571,-607.3302322,0.00042298,30]
[406656788,1772039802596,-324.0573827,0.00042298,30]
[406656789,1772039802621,-607.3302322,0.00042298,30]
[406656790,1772039802646,-204.4211764,0.00042298,30]
[406656791,1772039802671,-150.0,0.00042298,30]
[406656792,1772039802698,-186.4444958,0.00042298,30]
[406656793,1772039802723,-607.3302322,0.00042298,30]
[406656794,1772039802749,-607.3302322,0.00042298,30]
[406656795,1772039802775,-594.0261927,0.00042298,30]
[406656796,1772039802800,-150.0,0.00042298,30]
[406656797,1772039802827,-607.3302322,0.00042298,30]
[406656798,1772039802852,-151.0,0.00042298,120]
[406656799,1772039802877,-160.920416,0.00042298,120]
[406656800,1772039802902,-1200.0,0.00042298,120]
[406656801,1772039802926,-1200.0,0.00042298,120]
[406656802,1772039802952,-1200.0,0.00042298,120]
[406656803,1772039802977,-1200.0,0.00042298,120]
[406656804,1772039803002,-1200.0,0.00042298,120]
[406656805,1772039803181,-1200.0,0.00042298,120]
[406656806,1772039803208,-1200.0,0.00042298,120]
[406656807,1772039803235,-1200.0,0.00042298,120]
[406656808,1772039803260,-1200.0,0.00042298,120]
[406656809,1772039803285,-1200.0,0.00042298,120]
[406656810,1772039803311,-1200.0,0.00042298,120]
[406656811,1772039803337,-1200.0,0.00042298,120]
[406656812,1772039803364,-1247.26532841,0.00042298,120]
[406656813,1772039803390,-150.0,0.00042298,30]
[406656814,1772039803416,-151.0,0.00042298,120]
[406656815,1772039803441,-151.0,0.00042298,120]
[406656816,1772039803466,-151.0,0.00042298,120]
[406656817,1772039803492,-249.29798,0.00042298,120]
[406656818,1772039803518,-151.0,0.00042298,120]
[406656819,1772039803543,-151.0,0.00042298,120]
[406656820,1772039803568,-151.0,0.00042298,120]
[406656821,1772039803594,-151.0,0.00042298,120]
[406656822,1772039803620,-151.0,0.00042298,120]
[406656823,1772039803644,-151.0,0.00042298,120]
[406656824,1772039803668,-151.0,0.00042298,120]
[406656825,1772039803693,-151.0,0.00042298,120]
[406656826,1772039803717,-151.0,0.00042298,120]
[406656827,1772039803744,-151.0,0.00042298,120]
[406656828,1772039803768,-2260.480313,0.00042298,120]
[406656829,1772039803795,-151.0,0.00042298,120]
[406656830,1772039803822,-151.0,0.00042298,120]
[406656831,1772039803849,-2260.480313,0.00042298,120]
[406656832,1772039803876,-151.0,0.00042298,120]
[406656833,1772039803902,-270.615278,0.00042298,120]
[406656834,1772039803929,-2260.480313,0.00042298,120]
[406656835,1772039803955,-2260.480313,0.00042298,120]
[406656836,1772039803981,-2260.480313,0.00042298,120]
[406656837,1772039804007,-2260.480313,0.00042298,120]
[406656838,1772039804033,-2260.480313,0.00042298,120]
[406656839,1772039804062,-2260.480313,0.00042298,120]
[406656840,1772039804088,-2260.480313,0.00042298,120]
[406656841,1772039804115,-2260.480313,0.00042298,120]
[406656842,1772039804141,-2260.480313,0.00042298,120]
[406656843,1772039804166,-2260.480313,0.00042298,120]
[406656844,1772039804192,-2260.480313,0.00042298,120]
[406656845,1772039804218,-2260.480313,0.00042298,120]
[406656846,1772039804244,-2260.480313,0.00042298,120]
[406656847,1772039804269,-2260.480313,0.00042298,120]
[406656848,1772039804296,-2260.480313,0.00042298,120]
[406656849,1772039804323,-2260.480313,0.00042298,120]
[406656850,1772039804351,-2260.480313,0.00042298,120]
[406656851,1772039804379,-2260.480309,0.00042298,120]
[406656852,1772039804407,-366.878277,0.00042298,120]
[406656853,1772039804433,-366.878277,0.00042298,120]
[406656854,1772039804460,-366.878277,0.00042298,120]
[406656855,1772039804487,-366.878277,0.00042298,120]
[406656856,1772039804515,-366.878277,0.00042298,120]
[406656857,1772039804539,-366.878277,0.00042298,120]
[406656858,1772039804564,-366.878277,0.00042298,120]
[406656859,1772039804589,-366.878277,0.00042298,120]
[406656860,1772039804613,-366.878277,0.00042298,120]
[406656861,1772039804638,-366.878277,0.00042298,120]
[406656862,1772039804663,-366.878277,0.00042298,120]
[406656863,1772039804687,-366.878277,0.00042298,120]
[406656864,1772039804712,-366.878277,0.00042298,120]
[406656865,1772039804738,-366.878277,0.00042298,120]
[406656866,1772039804768,-366.878277,0.00042298,120]
[406656867,1772039804795,-366.878277,0.00042298,120]
[406656868,1772039804822,-366.878277,0.00042298,120]
[406656869,1772039804847,-366.878277,0.00042298,120]
[406656870,1772039804874,-366.878277,0.00042298,120]
[406656871,1772039804899,-366.878285,0.00042298,120]
[406656872,1772040181984,-255.9418,0.00013272,14]
[406656873,1772040182022,-250.0,0.0002,10]
[406656874,1772040182048,-250.0,0.000201,10]
[406656875,1772040182073,-250.0,0.000202,10]
[406656876,1772040182098,-250.0,0.000203,10]
[406656877,1772040182122,-394.288096,0.000204,10]
[406656878,1772040182358,-1572.48850364,0.00021,10]
[406656879,1772040182387,-703.0,0.000225,10]
[406656880,1772040182413,-1057.26736851,0.00024657,12]
[406656881,1772040182439,-204.0,0.00025,17]
[406656882,1772040182463,-170519.57820631,0.00026,10]
[406656883,1772040182490,-151.0,0.00026849,20]
[406656884,1772040182513,-600.0,0.00027,14]
[406656885,1772040182537,-193784.03693058,0.00027,20]
[406656886,1772040182560,-254.44463623,0.00027397,10]
[406656887,1772040182584,-169.0,0.00027783,14]
[406656888,1772040182608,-21974.81399229,0.0002899,14]
[406656889,1772040182633,-158.0,0.00029,20]
[406656890,1772040182658,-161.91395573,0.00029,15]
[406656891,1772040182683,-600.0,0.00029866,23]
[406656892,1772040182709,-823.13,0.00029879,30]
[406656893,1772040182732,-600.0,0.00029965,23]
[406656894,1772040182755,-600.0,0.00029967,23]
[406656895,1772040182778,-600.0,0.00029967,23]
[406656896,1772040182803,-600.0,0.00029967,23]
[406656897,1772040182827,-600.0,0.00029968,23]
[406656898,1772040182852,-600.0,0.00030067,23]
[406656899,1772040182879,-1832.88756213,0.00030437,12]
[406656900,1772040182905,-986.54672592,0.00030809,28]
[406656901,1772040182931,-585.75056128,0.00031541,16]
[406656902,1772040182957,-201.0,0.00031614,30]
[406656903,1772040182982,-1646.26,0.00031703,30]
[406656904,1772040183006,-600.0,0.0003175,30]
[406656905,1772040183030,-169.0,0.00031752,14]
[406656906,1772040183055,-1007.68,0.00032,30]
[406656907,1772040183081,-169.0,0.0003334,30]
[406656908,1772040183110,-2469.38,0.00033526,30]
[406656909,1772040183134,-8978.44425789,0.00034,14]
[406656910,1772040183164,-2083.49087552,0.00034032,22]
[406656911,1772040183191,-403.0,0.00034757,11]
[406656912,1772040183215,-179.316,0.00034775,40]
[406656913,1772040183238,-712.0,0.0003483,11]
[406656914,1772040183261,-403.0,0.0003483,11]
[406656915,1772040183286,-403.0,0.0003483,11]
[406656916,1772040183311,-403.0,0.0003483,11]
[406656917,1772040183334,-715.0,0.00034932,11]
[406656918,1772040183358,-224.52148,0.00035,14]
[406656919,1772040183381,-715.0,0.00035077,11]
[406656920,1772040183407,-162.0,0.0003515,11]
[406656921,1772040183430,-162.0,0.0003515,11]
[406656922,1772040183454,-163.0,0.0003515,11]
[406656923,1772040183485,-244.0,0.0003525,14]
[406656924,1772040183509,-403.0,0.0003547,11]
[406656925,1772040183533,-715.0,0.0003547,11]
[406656926,1772040183555,-403.0,0.00035572,11]
[406656927,1772040183579,-584.0,0.00035717,11]
[406656928,1772040183604,-163.0,0.00035735,11]
[406656929,1772040183627,-715.0,0.00035788,11]
[406656930,1772040183654,-403.0,0.0003579,11]
[406656931,1772040183678,-715.0,0.0003579,11]
[406656932,1772040183701,-715.0,0.0003579,11]
[406656933,1772040183725,-715.0,0.0003579,11]
[406656934,1772040183751,-564.36222925,0.00035799,27]
[406656935,1772040183776,-150.0,0.00035876,14]
[406656936,1772040183800,-150.0,0.00035876,14]
[406656937,1772040183824,-200.0,0.00035876,14]
[406656938,1772040183848,-150.0,0.00035889,120]
[406656939,1772040183873,-162.0,0.00035892,11]
[406656940,1772040183899,-715.0,0.00036,14]
[406656941,1772040183923,-715.0,0.00036037,11]
[406656942,1772040183947,-403.0,0.00036037,11]
[406656943,1772040183973,-260.0,0.00036099,14]
[406656944,1772040183997,-715.0,0.0003611,11]
[406656945,1772040184021,-403.0,0.0003611,11]
[406656946,1772040184044,-403.0,0.0003611,11]
[406656947,1772040184068,-715.0,0.0003611,11]
[406656948,1772040184094,-299.0,0.00036377,14]
[406656949,1772040184119,-150.0,0.00036432,14]
[406656950,1772040184146,-183.0,0.00036432,14]
[406656951,1772040184171,-717.99611093,0.00036483,29]
[406656952,1772040184194,-403.0,0.00036737,11]
[406656953,1772040184218,-403.0,0.00036883,11]
[406656954,1772040184242,-350.0,0.00036985,14]
[406656955,1772040184266,-350.0,0.00036985,14]
[406656956,1772040184292,-350.0,0.00036985,14]
[406656957,1772040184320,-350.0,0.00036985,14]
[406656958,1772040184344,-350.0,0.00036985,14]
[406656959,1772040184368,-231.0,0.00036985,14]
[406656960,1772040184394,-1563.82510974,0.00037,20]
[406656961,1772040184419,-450.0,0.00037013,14]
[406656962,1772040184444,-450.0,0.00037013,14]
[406656963,1772040184468,-450.0,0.00037013,14]
[406656964,1772040184495,-450.0,0.00037013,14]
[406656965,1772040184520,-450.0,0.00037013,14]
[406656966,1772040184544,-197.0,0.00037013,14]
[406656967,1772040184568,-150.0,0.00037048,14]
[406656968,1772040184592,-150.0,0.00037048,14]
[406656969,1772040184616,-170.0,0.00037048,14]
[406656970,1772040184644,-176.0,0.00037048,30]
[406656971,1772040184667,-403.0,0.00037057,11]
[406656972,1772040184692,-207.0,0.00037125,14]
[406656973,1772040184715,-235.0,0.00037523,11]
[406656974,1772040184739,-150.0,0.00037777,120]
[406656975,1772040184763,-174.0,0.00037992,21]
[406656976,1772040184787,-150.0,0.00038666,21]
[406656977,1772040184811,-207.0,0.00038666,21]
[406656978,1772040184835,-186.0,0.00038907,21]
[406656979,1772040184863,-213.0,0.00039206,21]
[406656980,1772040184889,-238.0,0.00039265,21]
[406656981,1772040185082,-150.0,0.00039666,120]
[406656982,1772040185109,-159.51355942,0.00039712,10]
[406656983,1772040185135,-37000.0,0.0003978,20]
[406656984,1772040185164,-28520.9081031,0.0003978,25]
[406656985,1772040185192,-250.0,0.00039862,21]
[406656986,1772040185219,-250.0,0.00039862,21]
[406656987,1772040185248,-250.0,0.00039862,21]
[406656988,1772040185275,-250.0,0.00039862,21]
[406656989,1772040185302,-250.0,0.00039862,21]
[406656990,1772040185329,-165.0,0.00039862,21]
[406656991,1772040185354,-300.0,0.00039891,21]
[406656992,1772040185381,-300.0,0.00039891,21]
[406656993,1772040185415,-300.0,0.00039891,21]
[406656994,1772040185442,-300.0,0.00039891,21]
[406656995,1772040185467,-300.0,0.00039891,21]
[406656996,1772040185495,-248.0,0.00039891,21]
[406656997,1772040185523,-150.0,0.0003993,21]
[406656998,1772040185551,-185.0,0.0003993,21]
[406656999,1772040185579,-2500.0,0.0004,120]
[406657000,1772040185605,-50000.0,0.0004,30]
[406657001,1772040185631,-403.0,0.00040298,11]
[406657002,1772040185660,-231.0,0.00040307,11]
[406657003,1772040185685,-165.0,0.00040355,11]
[406657004,1772040185710,-403.0,0.00040359,11]
[406657005,1772040185734,-715.0,0.00040359,11]
[406657006,1772040185760,-2625.0,0.000405,120]
[406657007,1772040185785,-403.0,0.00040618,11]
[406657008,1772040185811,-403.0,0.00040625,11]
[406657009,1772040185836,-403.0,0.00040938,11]
[406657010,1772040185863,-497.74,0.00040993,120]
[406657011,1772040185897,-487.0,0.00040993,120]
[406657012,1772040185923,-553.19,0.00040993,120]
[406657013,1772040185951,-518.88,0.00040993,120]
[406657014,1772040185976,-2756.25,0.00041,120]
[406657015,1772040186003,-5752.64,0.00041095,120]
[406657016,1772040186029,-10971.33,0.00041096,120]
[406657017,1772040186054,-165.37,0.000412,14]
[406657018,1772040186079,-169.19,0.000412,14]
[406657019,1772040186106,-2894.06,0.000415,120]
[406657020,1772040186132,-403.0,0.00041598,11]
[406657021,1772040186163,-518.88,0.00041913,120]
[406657022,1772040186189,-3038.76,0.00042,120]
[406657023,1772040186217,-4024.44,0.00042,30]
[406657024,1772040186242,-529.81,0.00042,30]
[406657025,1772040186266,-4790.86,0.00042,14]
[406657026,1772040186313,-150.0,0.00042298,30]
[406657027,1772040186337,-14955.0,0.00042298,60]
[406657028,1772040186363,-489.0,0.00042298,60]
[406657029,1772040186387,-1377.267,0.00042298,120]
[406657030,1772040186413,-475.0,0.00042298,120]
[406657031,1772040186437,-475.0,0.00042298,120]
[406657032,1772040186461,-475.0,0.00042298,120]
[406657033,1772040186483,-475.0,0.00042298,120]
[406657034,1772040186508,-475.0,0.00042298,120]
[406657035,1772040186532,-475.0,0.00042298,120]
[406657036,1772040186557,-475.0,0.00042298,120]
[406657037,1772040186582,-475.0,0.00042298,120]
[406657038,1772040186607,-475.0,0.00042298,120]
[406657039,1772040186631,-475.0,0.00042298,120]
[406657040,1772040186658,-475.0,0.00042298,120]
[406657041,1772040186681,-475.0,0.00042298,120]
[406657042,1772040186702,-475.0,0.00042298,120]
[406657043,1772040186725,-475.0,0.00042298,120]
[406657044,1772040186748,-475.0,0.00042298,120]
[406657045,1772040186771,-475.0,0.00042298,120]
[406657046,1772040186795,-475.0,0.00042298,120]
[406657047,1772040186818,-475.0,0.00042298,120]
[406657048,1772040186840,-888.25,0.00042298,30]
[406657049,1772040186867,-151.0,0.00042301,57]
[406657050,1772040186890,-715.0,0.00042486,16]
[406657051,1772040186916,-715.0,0.00042486,16]
[406657052,1772040186939,-3190.7,0.000425,120]
[406657053,1772040186962,-194.88233464,0.000425,120]
[406657054,1772040186985,-179.76630381,0.00042823,28]
[406657055,1772040187011,-1621.62673687,0.00042827,30]
[406657056,1772040187035,-1931.718195,0.00042827,30]
[406657057,1772040187060,-518.88,0.00042834,120]
[406657058,1772040187084,-3350.23,0.00043,120]
[406657059,1772040187108,-3517.75,0.000435,120]
[406657060,1772040187130,-194.88233464,0.000437,120]
[406657061,1772040187156,-705.0,0.00043702,16]
[406657062,1772040187180,-518.88,0.00043754,120]
[406657063,1772040187205,-3867.41203649,0.00043771,30]
[406657064,1772040187230,-3220.43109298,0.00043799,30]
[406657065,1772040187254,-500.0,0.00043836,16]
[406657066,1772040187277,-500.0,0.00043836,16]
[406657067,1772040187301,-500.0,0.00043836,10]
[406657068,1772040187325,-497.74,0.00043984,120]
[406657069,1772040187348,-202.88,0.00044,120]
[406657070,1772040187372,-403.0,0.00044022,16]
[406657071,1772040187397,-1015.75291436,0.0004411,10]
[406657072,1772040187422,-518.88,0.00044675,120]
[406657073,1772040187447,-4952.46819129,0.00044716,30]
[406657074,1772040187471,-4116.64332952,0.00044771,30]
[406657075,1772040187494,-4024.44,0.00045,30]
[406657076,1772040187517,-529.81,0.00045,30]
[406657077,1772040187541,-2761.43,0.00045,14]
[406657078,1772040187568,-4790.86,0.00045,14]
[406657079,1772040187592,-518.88,0.00045595,120]
[406657080,1772040187616,-5803.10587798,0.00045661,30]
[406657081,1772040187640,-298.22,0.00046277,120]
[406657082,1772040187669,-518.88,0.00046516,120]
[406657083,1772040188005,3292.51,0.0003535,30]
[406657084,1772040188059,14955.0,0.00037312,30]
[406657085,1772040188096,19461.77,0.00032877,10]
[406657086,1772040188150,4115.64,0.00037173,30]
[406657087,1772040188268,4938.77,0.00038997,30]
[406657088,1772040188299,328986.50197245,0.00046575,10]
[406657089,1772040188360,489.0,0.00037312,30]
[406657090,1772040188411,5761.9,0.00040821,30]
[406657091,1772040188441,4880.30199936,0.00046575,10]
[406657092,1772040188511,6585.03,0.00042644,30]
[406657093,1772040188744,7408.15,0.00044468,30]
[406657094,1772040188824,8231.28,0.00046291,30]
[406657095,1772040188908,352.77,0.00039841,120]
[406657096,1772040188983,705.54,0.00042273,120]
[406657097,1772040189344,1058.31,0.00044704,120]
[406657098,1772040189804,2000.0,0.00046575,10]
[406657099,1772040190510,14085.932175,0.00028286,30]
[406657100,1772040190666,2000.0,0.00046575,10]
[406657101,1772040191267,32867.175075,0.00037715,60]
[406657102,1772040206990,-10722.0,0.00042237,10]
[406657103,1772040207017,-20583.25659484,0.00042237,10]
[406657104,1772040207046,-500.0,0.00042237,120]
[406657105,1772040207075,-274.943923,0.00042237,120]
[406657106,1772040207103,-222.0,0.00042237,120]
[406657107,1772040207130,-237.33511079,0.00042237,120]
[406657108,1772040207159,-500.0,0.00042237,120]
[406657109,1772040207187,-518.5,0.00042237,120]
[406657110,1772040207216,-537.6845,0.00042237,120]
[406657111,1772040207245,-557.5788265,0.00042237,120]
[406657112,1772040207272,-2200.0,0.00042237,120]
[406657113,1772040207300,-578.20924308,0.00042237,120]
[406657114,1772040207327,-2281.4,0.00042237,120]
[406657115,1772040207357,-599.60298507,0.00042237,120]
[406657116,1772040207384,-2365.8118,0.00042237,120]
[406657117,1772040207415,-621.78829552,0.00042237,120]
[406657118,1772040207443,-2453.3468366,0.00042237,120]
[406657119,1772040207471,-644.79446246,0.00042237,120]
[406657120,1772040207498,-2544.12066955,0.00042237,120]
[406657121,1772040207527,-644.79446246,0.00042237,120]
[406657122,1772040207555,-2638.25313433,0.00042237,120]
[406657123,1772040207584,-2735.8685003,0.00042237,120]
[406657124,1772040207614,-151.0,0.00042237,120]
[406657125,1772040207645,-156.587,0.00042237,120]
[406657126,1772040207674,-250.0,0.00042237,120]
[406657127,1772040207706,-162.380719,0.00042237,120]
[406657128,1772040207736,-250.0,0.00042237,120]
[406657129,1772040207768,-168.3888056,0.00042237,120]
[406657130,1772040207797,-250.0,0.00042237,120]
[406657131,1772040207829,-174.61919141,0.00042237,120]
[406657132,1772040207859,-250.0,0.00042237,120]
[406657133,1772040207892,-181.08010149,0.00042237,120]
[406657134,1772040207922,-250.0,0.00042237,120]
[406657135,1772040207953,-187.78006525,0.00042237,120]
[406657136,1772040207981,-250.0,0.00042237,120]
[406657137,1772040208012,-194.72792766,0.00042237,120]
[406657138,1772040208040,-250.0,0.00042237,120]
[406657139,1772040208073,-201.93286099,0.00042237,120]
[406657140,1772040208100,-250.0,0.00042237,120]
[406657141,1772040208327,-209.40437684,0.00042237,120]
[406657142,1772040208355,-250.0,0.00042237,120]
[406657143,1772040208387,-217.15233878,0.00042237,120]
[406657144,1772040208417,-225.18697532,0.00042237,120]
[406657145,1772040208448,-233.51889341,0.00042237,120]
[406657146,1772040208479,-242.15909246,0.00042237,120]
[406657147,1772040208511,-251.11897888,0.00042237,120]
[406657148,1772040208540,-250.0,0.00042237,120]
[406657149,1772040208572,-260.4103811,0.00042237,120]
[406657150,1772040208601,-151.0,0.00042237,120]
[406657151,1772040208630,-250.0,0.00042237,120]
[406657152,1772040208660,-270.0455652,0.00042237,120]
[406657153,1772040208687,-151.0,0.00042237,120]
[406657154,1772040208716,-250.0,0.00042237,120]
[406657155,1772040208747,-280.03725112,0.00042237,120]
[406657156,1772040208774,-250.0,0.00042237,120]
[406657157,1772040208804,-290.39862941,0.00042237,120]
[406657158,1772040208829,-250.0,0.00042237,120]
[406657159,1772040208858,-290.39862941,0.00042237,120]
[406657160,1772040208890,-250.0,0.00042237,120]
[406657161,1772040208918,-250.0,0.00042237,120]
[406657162,1772040208949,-250.0,0.00042237,120]
[406657163,1772040208977,-2000.0,0.00042237,120]
[406657164,1772040209006,-2000.0,0.00042237,120]
[406657165,1772040209035,-151.0,0.00042237,120]
[406657166,1772040209064,-151.0,0.00042237,120]
[406657167,1772040209092,-151.00000001,0.00042237,120]
[406657168,1772040209120,-250.0,0.00042237,120]
[406657169,1772040209149,-250.0,0.00042237,120]
[406657170,1772040209181,-250.0,0.00042237,120]
[406657171,1772040209210,-250.0,0.00042237,120]
[406657172,1772040209238,-250.0,0.00042237,120]
[406657173,1772040209270,-250.0,0.00042237,120]
[406657174,1772040209299,-250.0,0.00042237,120]
[406657175,1772040209329,-250.0,0.00042237,120]
[406657176,1772040209360,-250.0,0.00042237,120]
[406657177,1772040209389,-250.0,0.00042237,120]
[406657178,1772040209419,-250.0,0.00042237,120]
[406657179,1772040209447,-250.0,0.00042237,120]
[406657180,1772040209475,-250.0,0.00042237,120]
[406657181,1772040209503,-250.0,0.00042237,120]
[406657182,1772040209532,-250.0,0.00042237,120]
[406657183,1772040209561,-250.0,0.00042237,120]
[406657184,1772040209590,-250.0,0.00042237,120]
[406657185,1772040209617,-250.0,0.00042237,120]
[406657186,1772040209646,-250.0,0.00042237,120]
[406657187,1772040209674,-250.0,0.00042237,120]
[406657188,1772040209703,-500.0,0.00042237,120]
[406657189,1772040209732,-250.0,0.00042237,120]
[406657190,1772040209762,-500.0,0.00042237,120]
[406657191,1772040209794,-250.0,0.00042237,120]
[406657192,1772040209825,-500.0,0.00042237,120]
[406657193,1772040209853,-250.0,0.00042237,120]
[406657194,1772040209883,-500.0,0.00042237,120]
[406657195,1772040209912,-250.0,0.00042237,120]
[406657196,1772040209949,-500.0,0.00042237,120]
[406657197,1772040209977,-250.0,0.00042237,120]
[406657198,1772040210006,-500.0,0.00042237,120]
[406657199,1772040210035,-250.0,0.00042237,120]
[406657200,1772040210064,-500.0,0.00042237,120]
[406657201,1772040210092,-250.0,0.00042237,120]
[406657202,1772040210122,-250.0,0.00042237,120]
[406657203,1772040210154,-500.0,0.00042237,120]
[406657204,1772040210184,-500.0,0.00042237,120]
[406657205,1772040210213,-500.0,0.00042237,120]